[Event "*** Titled Tuesday Blitz"]
[Site "Chess.com"]
[Date "2020.11.24"]
[Round "2"]
[White "vugarrasulov"]
[Black "Fusikk"]
[Result "1-0"]
[WhiteElo "2879"]
[BlackElo "2529"]
[TimeControl "180+1"]
[EndTime "10:33:52 PST"]
[Termination "vugarrasulov won by resignation"]

1. d4 {[%clk 0:03:00.9]} 1... Nf6 {[%clk 0:02:59]} 2. c4 {[%clk 0:03:00.7]} 2...
d6 {[%clk 0:02:58.5]} 3. Nf3 {[%clk 0:03:00.4]} 3... g6 {[%clk 0:02:57.7]} 4. g3
{[%clk 0:03:00.3]} 4... Bg7 {[%clk 0:02:58.1]} 5. Bg2 {[%clk 0:03:00.8]} 5...
O-O {[%clk 0:02:57.8]} 6. O-O {[%clk 0:03:01.3]} 6... c6 {[%clk 0:02:54.1]} 7.
b3 {[%clk 0:02:59.7]} 7... Bf5 {[%clk 0:02:50.8]} 8. Bb2 {[%clk 0:02:58.9]} 8...
Qc8 {[%clk 0:02:41.7]} 9. Re1 {[%clk 0:02:57.7]} 9... Ne4 {[%clk 0:02:35.6]} 10.
Nh4 {[%clk 0:02:55.2]} 10... d5 {[%clk 0:02:25.5]} 11. Nxf5 {[%clk 0:02:52.1]}
11... Qxf5 {[%clk 0:02:24.5]} 12. f3 {[%clk 0:02:49.8]} 12... Nd6 {[%clk
0:02:20.7]} 13. Nd2 {[%clk 0:02:37.6]} 13... Qe6 {[%clk 0:01:54.6]} 14. cxd5
{[%clk 0:02:22.2]} 14... cxd5 {[%clk 0:01:52.3]} 15. e3 {[%clk 0:02:10]} 15...
Nc6 {[%clk 0:01:51.4]} 16. Qe2 {[%clk 0:02:08.4]} 16... Rac8 {[%clk 0:01:50.4]}
17. Rac1 {[%clk 0:02:07.3]} 17... a6 {[%clk 0:01:50.1]} 18. a3 {[%clk
0:02:06.8]} 18... Qd7 {[%clk 0:01:34.5]} 19. Qd3 {[%clk 0:02:03.3]} 19... e6
{[%clk 0:01:32.3]} 20. Rc5 {[%clk 0:01:59.9]} 20... b6 {[%clk 0:01:21.4]} 21.
Rc2 {[%clk 0:01:59.2]} 21... Qb7 {[%clk 0:01:19.7]} 22. Rec1 {[%clk 0:01:58.7]}
22... Na5 {[%clk 0:01:17.9]} 23. Bc3 {[%clk 0:01:47.3]} 23... Nc6 {[%clk
0:01:13.2]} 24. Bb2 {[%clk 0:01:41.7]} 24... Na5 {[%clk 0:01:10.5]} 25. Kf2
{[%clk 0:01:39.7]} 25... Rxc2 {[%clk 0:01:09.1]} 26. Rxc2 {[%clk 0:01:40.6]}
26... Rc8 {[%clk 0:01:09]} 27. Bf1 {[%clk 0:01:39.2]} 27... Rxc2 {[%clk
0:00:59]} 28. Qxc2 {[%clk 0:01:40.1]} 28... b5 {[%clk 0:00:56.9]} 29. Bd3 {[%clk
0:01:30.4]} 29... Qc6 {[%clk 0:00:54.4]} 30. Qxc6 {[%clk 0:01:27]} 30... Nxc6
{[%clk 0:00:55.3]} 31. Ke2 {[%clk 0:01:27.3]} 31... Kf8 {[%clk 0:00:53.6]} 32.
Nb1 {[%clk 0:01:20.8]} 32... Ke7 {[%clk 0:00:52]} 33. Nc3 {[%clk 0:01:21.3]}
33... Kd7 {[%clk 0:00:51]} 34. a4 {[%clk 0:01:15]} 34... b4 {[%clk 0:00:26.3]}
35. Nd1 {[%clk 0:01:14.6]} 35... Na5 {[%clk 0:00:24.2]} 36. Bc2 {[%clk
0:01:09.1]} 36... Kc6 {[%clk 0:00:20.1]} 37. Nf2 {[%clk 0:01:09.1]} 37... f5
{[%clk 0:00:18.4]} 38. Nd3 {[%clk 0:01:09]} 38... Kb7 {[%clk 0:00:16.6]} 39.
Nxb4 {[%clk 0:01:09.1]} 39... Bf8 {[%clk 0:00:16.7]} 40. Nd3 {[%clk 0:01:09]}
40... Be7 {[%clk 0:00:15.6]} 41. Nc5+ {[%clk 0:01:09]} 41... Ka7 {[%clk
0:00:14.5]} 42. Nxe6 {[%clk 0:01:09.9]} 42... Nc6 {[%clk 0:00:14.4]} 43. Ba3
{[%clk 0:01:08]} 43... a5 {[%clk 0:00:12.2]} 44. Bc5+ {[%clk 0:01:07.7]} 44...
Kb7 {[%clk 0:00:11.6]} 45. Bd3 {[%clk 0:01:08.6]} 45... Nb4 {[%clk 0:00:11.1]}
46. Nf4 {[%clk 0:00:55.6]} 46... Nxd3 {[%clk 0:00:09.3]} 47. Kxd3 {[%clk
0:00:56.5]} 47... Kc6 {[%clk 0:00:08.4]} 48. b4 {[%clk 0:00:55.6]} 48... axb4
{[%clk 0:00:07.7]} 49. Bxb4 {[%clk 0:00:56.5]} 49... Bg5 {[%clk 0:00:07.3]} 50.
Bxd6 {[%clk 0:00:55.5]} 50... Kxd6 {[%clk 0:00:07.1]} 51. Ne2 {[%clk 0:00:56.1]}
51... Bd8 {[%clk 0:00:06.1]} 52. Nc3 {[%clk 0:00:56.3]} 52... Ba5 {[%clk
0:00:06.5]} 53. e4 {[%clk 0:00:56.2]} 53... Kc6 {[%clk 0:00:07.4]} 54. Nxd5
{[%clk 0:00:55.7]} 54... fxe4+ {[%clk 0:00:06.8]} 55. fxe4 {[%clk 0:00:56.6]}
55... Kd6 {[%clk 0:00:07]} 56. Nf6 {[%clk 0:00:56.7]} 56... h5 {[%clk
0:00:06.2]} 57. e5+ {[%clk 0:00:57.2]} 57... Ke6 {[%clk 0:00:06.4]} 58. Ke4
{[%clk 0:00:57.8]} 58... Bc3 {[%clk 0:00:06.4]} 59. d5+ {[%clk 0:00:58.7]} 59...
Ke7 {[%clk 0:00:05.8]} 60. h3 {[%clk 0:00:54.9]} 60... Kd8 {[%clk 0:00:06.2]}
61. d6 {[%clk 0:00:54.6]} 61... g5 {[%clk 0:00:05.9]} 62. Kd5 {[%clk 0:00:54.5]}
62... h4 {[%clk 0:00:05.5]} 63. gxh4 {[%clk 0:00:54.5]} 1-0

[Event "*** Titled Tuesday Blitz"]
[Site "Chess.com"]
[Date "2020.11.24"]
[Round "2"]
[White "lefonghua"]
[Black "MrTattaglia"]
[Result "0-1"]
[WhiteElo "2516"]
[BlackElo "2819"]
[TimeControl "180+1"]
[EndTime "10:33:55 PST"]
[Termination "MrTattaglia won by resignation"]

1. d4 {[%clk 0:03:00.9]} 1... Nf6 {[%clk 0:02:53.4]} 2. c4 {[%clk 0:03:01.2]}
2... e6 {[%clk 0:02:52.2]} 3. Nc3 {[%clk 0:03:01.5]} 3... Bb4 {[%clk 0:02:50.8]}
4. f3 {[%clk 0:03:01.9]} 4... c5 {[%clk 0:02:37.9]} 5. d5 {[%clk 0:03:00.2]}
5... O-O {[%clk 0:02:38.1]} 6. e4 {[%clk 0:02:57.9]} 6... b5 {[%clk 0:02:37.9]}
7. e5 {[%clk 0:02:52.3]} 7... Ne8 {[%clk 0:02:35.7]} 8. f4 {[%clk 0:02:51]} 8...
exd5 {[%clk 0:02:16.3]} 9. cxd5 {[%clk 0:02:48.2]} 9... d6 {[%clk 0:02:16.1]}
10. Nf3 {[%clk 0:02:46.4]} 10... c4 {[%clk 0:02:12.9]} 11. a4 {[%clk 0:02:39.8]}
11... Nd7 {[%clk 0:02:08.5]} 12. Be2 {[%clk 0:02:39.5]} 12... Nc7 {[%clk
0:01:34.1]} 13. O-O {[%clk 0:02:26]} 13... Bb7 {[%clk 0:01:28.7]} 14. Nxb5
{[%clk 0:02:01.5]} 14... Nxb5 {[%clk 0:01:27.3]} 15. axb5 {[%clk 0:02:00.9]}
15... Qb6+ {[%clk 0:01:26.2]} 16. Kh1 {[%clk 0:01:57.6]} 16... Qxb5 {[%clk
0:01:24.3]} 17. e6 {[%clk 0:01:32]} 17... Nf6 {[%clk 0:01:21.9]} 18. exf7+
{[%clk 0:01:25.2]} 18... Rxf7 {[%clk 0:01:21.3]} 19. Nd4 {[%clk 0:01:09]} 19...
Qxd5 {[%clk 0:01:18.7]} 20. Bf3 {[%clk 0:01:06.2]} 20... Ne4 {[%clk 0:01:15.5]}
21. Be3 {[%clk 0:00:45.9]} 21... Bc5 {[%clk 0:01:11]} 22. Nc2 {[%clk 0:00:42.9]}
22... Qf5 {[%clk 0:00:56.1]} 23. Bxc5 {[%clk 0:00:39.6]} 23... Qxc5 {[%clk
0:00:57]} 24. Qd4 {[%clk 0:00:33.2]} 24... Qxd4 {[%clk 0:00:54.6]} 25. Nxd4
{[%clk 0:00:34.1]} 25... Rxf4 {[%clk 0:00:54.2]} 26. Nb5 {[%clk 0:00:32.5]}
26... Raf8 {[%clk 0:00:47.6]} 27. Rxa7 {[%clk 0:00:23.1]} 27... Nd2 {[%clk
0:00:47.3]} 28. Rxb7 {[%clk 0:00:16.3]} 28... Nxf1 {[%clk 0:00:47.2]} 29. Kg1
{[%clk 0:00:16.1]} 29... Nd2 {[%clk 0:00:46]} 30. Bd5+ {[%clk 0:00:16.5]} 30...
Kh8 {[%clk 0:00:45.8]} 31. h3 {[%clk 0:00:16.6]} 31... R4f5 {[%clk 0:00:41.4]}
32. Be6 {[%clk 0:00:16.8]} 32... R5f6 {[%clk 0:00:39.6]} 33. Bd5 {[%clk
0:00:16.2]} 33... h5 {[%clk 0:00:38.9]} 34. Rd7 {[%clk 0:00:15.2]} 34... Rf5
{[%clk 0:00:30.5]} 35. Bc6 {[%clk 0:00:13.3]} 35... h4 {[%clk 0:00:26.2]} 36.
Nxd6 {[%clk 0:00:12.1]} 36... Rf1+ {[%clk 0:00:26.2]} 37. Kh2 {[%clk 0:00:12.5]}
37... Kh7 {[%clk 0:00:24.5]} 38. Be4+ {[%clk 0:00:11.3]} 38... Nxe4 {[%clk
0:00:24]} 39. Nxe4 {[%clk 0:00:12.2]} 39... Re1 {[%clk 0:00:20.2]} 40. Ng5+
{[%clk 0:00:12.4]} 40... Kg6 {[%clk 0:00:20.5]} 41. Nf3 {[%clk 0:00:13.3]} 41...
Rxf3 {[%clk 0:00:21]} 42. gxf3 {[%clk 0:00:13.8]} 42... Re2+ {[%clk 0:00:21.4]}
43. Kg1 {[%clk 0:00:14.4]} 43... Rxb2 {[%clk 0:00:21.2]} 44. Rc7 {[%clk
0:00:14.7]} 44... Rc2 {[%clk 0:00:21]} 45. Rc5 {[%clk 0:00:14.9]} 45... c3
{[%clk 0:00:19.9]} 46. Kh1 {[%clk 0:00:14.5]} 46... Kf6 {[%clk 0:00:19.8]} 47.
Kg1 {[%clk 0:00:14.9]} 47... g5 {[%clk 0:00:19.4]} 48. Kh1 {[%clk 0:00:14.5]}
48... Ke6 {[%clk 0:00:19.8]} 49. Kg1 {[%clk 0:00:14.9]} 49... Kd6 {[%clk
0:00:20.2]} 50. Rc8 {[%clk 0:00:14.3]} 50... Ke5 {[%clk 0:00:19.5]} 51. Rc4
{[%clk 0:00:12.2]} 51... Kd5 {[%clk 0:00:19.9]} 52. Rc8 {[%clk 0:00:12.4]} 52...
Kd4 {[%clk 0:00:20.1]} 53. Rd8+ {[%clk 0:00:12.8]} 53... Ke3 {[%clk 0:00:20.3]}
54. Rf8 {[%clk 0:00:12.8]} 54... Rd2 {[%clk 0:00:19.9]} 55. Rc8 {[%clk 0:00:12]}
55... c2 {[%clk 0:00:19.8]} 0-1

[Event "*** Titled Tuesday Blitz"]
[Site "Chess.com"]
[Date "2020.11.24"]
[Round "2"]
[White "Vuk2000"]
[Black "SARGISMV"]
[Result "1-0"]
[WhiteElo "2757"]
[BlackElo "2495"]
[TimeControl "180+1"]
[EndTime "10:33:55 PST"]
[Termination "Vuk2000 won on time"]

1. d4 {[%clk 0:03:00.9]} 1... c5 {[%clk 0:02:58.1]} 2. d5 {[%clk 0:03:00.9]}
2... e6 {[%clk 0:02:58.3]} 3. c4 {[%clk 0:03:00.9]} 3... exd5 {[%clk 0:02:58.7]}
4. cxd5 {[%clk 0:03:01.8]} 4... d6 {[%clk 0:02:57.4]} 5. Nc3 {[%clk 0:03:01.5]}
5... a6 {[%clk 0:02:57.5]} 6. a4 {[%clk 0:03:01.2]} 6... Ne7 {[%clk 0:02:56.4]}
7. e4 {[%clk 0:03:01.4]} 7... Ng6 {[%clk 0:02:55.6]} 8. Be3 {[%clk 0:02:46.6]}
8... Be7 {[%clk 0:02:56.5]} 9. g3 {[%clk 0:02:38.1]} 9... O-O {[%clk 0:02:57.4]}
10. Bg2 {[%clk 0:02:38.1]} 10... Bf6 {[%clk 0:02:58.2]} 11. Nge2 {[%clk
0:02:34.2]} 11... Re8 {[%clk 0:02:57.9]} 12. O-O {[%clk 0:02:33.3]} 12... Nd7
{[%clk 0:02:58.3]} 13. f4 {[%clk 0:02:31]} 13... Rb8 {[%clk 0:02:55.5]} 14. Qd3
{[%clk 0:02:10.1]} 14... Qc7 {[%clk 0:02:47.9]} 15. b3 {[%clk 0:02:02.8]} 15...
Qa5 {[%clk 0:02:21.6]} 16. e5 {[%clk 0:01:31.9]} 16... dxe5 {[%clk 0:02:16.4]}
17. f5 {[%clk 0:01:32.2]} 17... Ngf8 {[%clk 0:01:59.4]} 18. Ne4 {[%clk 0:01:20]}
18... b5 {[%clk 0:01:24.9]} 19. Nd6 {[%clk 0:01:07]} 19... c4 {[%clk 0:01:08.1]}
20. bxc4 {[%clk 0:01:01.5]} 20... bxc4 {[%clk 0:01:07.4]} 21. Qd2 {[%clk
0:00:39.3]} 21... Qxd2 {[%clk 0:01:00.9]} 22. Bxd2 {[%clk 0:00:40.2]} 22... Rd8
{[%clk 0:01:01.1]} 23. Ba5 {[%clk 0:00:35.1]} 23... Nb6 {[%clk 0:00:59.5]} 24.
Ne4 {[%clk 0:00:16.8]} 24... Nfd7 {[%clk 0:00:44.1]} 25. N2c3 {[%clk 0:00:16.6]}
25... Bb7 {[%clk 0:00:36.5]} 26. Rab1 {[%clk 0:00:15.4]} 26... Ba8 {[%clk
0:00:31.3]} 27. Rfd1 {[%clk 0:00:06.9]} 27... Rdc8 {[%clk 0:00:29.9]} 28. Rd2
{[%clk 0:00:03.5]} 28... Be7 {[%clk 0:00:21.2]} 29. d6 {[%clk 0:00:03.4]} 29...
Bd8 {[%clk 0:00:16]} 30. Rdb2 {[%clk 0:00:03.2]} 30... g6 {[%clk 0:00:11.8]} 31.
fxg6 {[%clk 0:00:02]} 31... hxg6 {[%clk 0:00:11.7]} 32. Bh3 {[%clk 0:00:02.2]}
32... f5 {[%clk 0:00:11.1]} 33. Nd2 {[%clk 0:00:02.7]} 33... Rc5 {[%clk
0:00:09.3]} 34. Bf1 {[%clk 0:00:03.1]} 34... Rxa5 {[%clk 0:00:09]} 35. Nxc4
{[%clk 0:00:03.7]} 35... Rc5 {[%clk 0:00:06.9]} 36. a5 {[%clk 0:00:04.3]} 36...
Nxc4 {[%clk 0:00:05.4]} 37. Rxb8 {[%clk 0:00:04.8]} 37... Nxb8 {[%clk 0:00:03]}
38. Rxb8 {[%clk 0:00:05.7]} 38... Nxd6 {[%clk 0:00:03.3]} 39. Rxd8+ {[%clk
0:00:05.8]} 39... Kf7 {[%clk 0:00:03.5]} 40. Na4 {[%clk 0:00:05]} 40... Rxa5
{[%clk 0:00:01.3]} 41. Nb6 {[%clk 0:00:05.6]} 1-0

[Event "*** Titled Tuesday Blitz"]
[Site "Chess.com"]
[Date "2020.11.24"]
[Round "2"]
[White "DonPreuss"]
[Black "Kopytkin"]
[Result "1-0"]
[WhiteElo "2245"]
[BlackElo "2429"]
[TimeControl "180+1"]
[EndTime "10:33:55 PST"]
[Termination "DonPreuss won on time"]

1. d4 {[%clk 0:03:00.9]} 1... Nf6 {[%clk 0:02:58.8]} 2. Nc3 {[%clk 0:03:00.2]}
2... g6 {[%clk 0:02:59.3]} 3. e4 {[%clk 0:02:58.7]} 3... d5 {[%clk 0:02:59.9]}
4. e5 {[%clk 0:02:54.3]} 4... Ne4 {[%clk 0:03:00.1]} 5. f3 {[%clk 0:02:52.6]}
5... Nxc3 {[%clk 0:02:56.3]} 6. bxc3 {[%clk 0:02:53.5]} 6... c5 {[%clk
0:02:54.6]} 7. Bb5+ {[%clk 0:02:52]} 7... Nc6 {[%clk 0:02:53.1]} 8. Ne2 {[%clk
0:02:50.7]} 8... Qa5 {[%clk 0:02:43.1]} 9. Bxc6+ {[%clk 0:02:48.7]} 9... bxc6
{[%clk 0:02:42.1]} 10. Bd2 {[%clk 0:02:47.6]} 10... Qa4 {[%clk 0:02:38.9]} 11.
O-O {[%clk 0:02:43.1]} 11... Ba6 {[%clk 0:02:36.1]} 12. e6 {[%clk 0:02:39.3]}
12... f6 {[%clk 0:02:21]} 13. Re1 {[%clk 0:02:24.1]} 13... Bg7 {[%clk
0:02:19.7]} 14. dxc5 {[%clk 0:02:02.8]} 14... Bxe2 {[%clk 0:02:18]} 15. Qxe2
{[%clk 0:01:52.7]} 15... O-O {[%clk 0:02:17.5]} 16. Reb1 {[%clk 0:01:46.4]}
16... Rab8 {[%clk 0:02:13.1]} 17. Rb3 {[%clk 0:01:38.8]} 17... f5 {[%clk
0:01:59.5]} 18. Rab1 {[%clk 0:01:24.8]} 18... Rxb3 {[%clk 0:01:56.2]} 19. axb3
{[%clk 0:01:24.8]} 19... Qa2 {[%clk 0:01:55.7]} 20. Qd1 {[%clk 0:01:20.7]} 20...
Qa5 {[%clk 0:01:52.5]} 21. b4 {[%clk 0:01:19.6]} 21... Qb5 {[%clk 0:01:52]} 22.
Rb3 {[%clk 0:01:07.5]} 22... a5 {[%clk 0:01:49.7]} 23. Be3 {[%clk 0:01:06.5]}
23... a4 {[%clk 0:01:47.1]} 24. Ra3 {[%clk 0:01:05.5]} 24... Ra8 {[%clk
0:01:45.3]} 25. Bd4 {[%clk 0:01:05.1]} 25... Bh6 {[%clk 0:01:30.2]} 26. Qe1
{[%clk 0:00:58]} 26... Bf4 {[%clk 0:01:20.7]} 27. Qh4 {[%clk 0:00:48.8]} 27...
Qb8 {[%clk 0:01:09.2]} 28. Qxe7 {[%clk 0:00:41.7]} 28... Ra7 {[%clk 0:01:09.2]}
29. Qf6 {[%clk 0:00:35.2]} 29... Be3+ {[%clk 0:00:36]} 30. Bxe3 {[%clk
0:00:32.7]} 30... Qf8 {[%clk 0:00:36.1]} 31. Bd4 {[%clk 0:00:26.1]} 31... Qxf6
{[%clk 0:00:35]} 32. Bxf6 {[%clk 0:00:26.3]} 32... Kf8 {[%clk 0:00:33.7]} 33.
Kf2 {[%clk 0:00:26.5]} 33... Ra8 {[%clk 0:00:22.3]} 34. Ke3 {[%clk 0:00:26.8]}
34... Re8 {[%clk 0:00:22.2]} 35. Kd4 {[%clk 0:00:25.6]} 35... Rxe6 {[%clk
0:00:21.8]} 36. Be5 {[%clk 0:00:25.9]} 36... f4 {[%clk 0:00:11.1]} 37. Rxa4
{[%clk 0:00:25.4]} 37... g5 {[%clk 0:00:11.3]} 38. Ra7 {[%clk 0:00:23.8]} 38...
Kg8 {[%clk 0:00:10.9]} 39. Rg7+ {[%clk 0:00:23.7]} 39... Kf8 {[%clk 0:00:10.7]}
40. Rxg5 {[%clk 0:00:22.6]} 40... h6 {[%clk 0:00:06.6]} 41. Rf5+ {[%clk
0:00:21.9]} 41... Kg8 {[%clk 0:00:06.1]} 42. Rxf4 {[%clk 0:00:22]} 42... Kh7
{[%clk 0:00:06.6]} 43. Rf7+ {[%clk 0:00:21.5]} 43... Kg6 {[%clk 0:00:07]} 44.
Rg7+ {[%clk 0:00:18]} 44... Kh5 {[%clk 0:00:07.1]} 45. f4 {[%clk 0:00:11.7]}
45... Re8 {[%clk 0:00:04.1]} 46. Ke3 {[%clk 0:00:09.1]} 1-0

[Event "*** Titled Tuesday Blitz"]
[Site "Chess.com"]
[Date "2020.11.24"]
[Round "2"]
[White "sboshaon21"]
[Black "mbachez"]
[Result "0-1"]
[WhiteElo "2097"]
[BlackElo "2400"]
[TimeControl "180+1"]
[EndTime "10:33:55 PST"]
[Termination "mbachez won on time"]

1. d4 {[%clk 0:03:00.9]} 1... Nf6 {[%clk 0:02:58.8]} 2. c4 {[%clk 0:03:00]} 2...
c5 {[%clk 0:02:58.4]} 3. d5 {[%clk 0:02:59.6]} 3... b5 {[%clk 0:02:58.5]} 4.
cxb5 {[%clk 0:02:56.7]} 4... a6 {[%clk 0:02:58.7]} 5. bxa6 {[%clk 0:02:55.9]}
5... g6 {[%clk 0:02:58.7]} 6. Nc3 {[%clk 0:02:56]} 6... Bg7 {[%clk 0:02:58.8]}
7. e4 {[%clk 0:02:55.3]} 7... O-O {[%clk 0:02:58.8]} 8. Nf3 {[%clk 0:02:52.8]}
8... d6 {[%clk 0:02:57.5]} 9. Bd3 {[%clk 0:02:51.5]} 9... Bxa6 {[%clk
0:02:51.5]} 10. O-O {[%clk 0:02:50.1]} 10... Qa5 {[%clk 0:02:48.8]} 11. a3
{[%clk 0:02:40.8]} 11... Nbd7 {[%clk 0:02:43]} 12. Bg5 {[%clk 0:02:37]} 12...
Rfb8 {[%clk 0:02:41.3]} 13. Rb1 {[%clk 0:02:35.9]} 13... Bxd3 {[%clk 0:02:32.3]}
14. Qxd3 {[%clk 0:02:34.9]} 14... Rb3 {[%clk 0:02:22.5]} 15. Nd2 {[%clk
0:02:28.1]} 15... Ne5 {[%clk 0:02:20.6]} 16. Nxb3 {[%clk 0:02:24.9]} 16... Nxd3
{[%clk 0:02:19.7]} 17. Nxa5 {[%clk 0:02:24.4]} 17... Rxa5 {[%clk 0:02:20.6]} 18.
Rfd1 {[%clk 0:02:13.2]} 18... c4 {[%clk 0:02:16.8]} 19. Be3 {[%clk 0:02:05.9]}
19... Ng4 {[%clk 0:02:13.4]} 20. Bb6 {[%clk 0:01:48.9]} 20... Ra6 {[%clk
0:02:12]} 21. Be3 {[%clk 0:01:43.9]} 21... Nxe3 {[%clk 0:02:10.2]} 22. fxe3
{[%clk 0:01:44.8]} 22... Bxc3 {[%clk 0:02:07.3]} 23. bxc3 {[%clk 0:01:43.4]}
23... Rxa3 {[%clk 0:02:07.4]} 24. Rb7 {[%clk 0:01:37.9]} 24... Kf8 {[%clk
0:02:06.8]} 25. Rb8+ {[%clk 0:01:34.1]} 25... Kg7 {[%clk 0:02:06.2]} 26. h3
{[%clk 0:01:30.8]} 26... Rxc3 {[%clk 0:02:05.8]} 27. Rc8 {[%clk 0:01:30.3]}
27... Nb2 {[%clk 0:01:52]} 28. Rb1 {[%clk 0:01:21.4]} 28... Rc2 {[%clk 0:01:32]}
29. Ra8 {[%clk 0:01:16.2]} 29... c3 {[%clk 0:01:31.2]} 30. Rc8 {[%clk
0:01:09.8]} 30... f5 {[%clk 0:01:23.2]} 31. exf5 {[%clk 0:01:08.1]} 31... gxf5
{[%clk 0:01:23.4]} 32. Kh2 {[%clk 0:01:04.2]} 32... Nd3 {[%clk 0:01:20.5]} 33.
Rb3 {[%clk 0:01:00.9]} 33... Ne1 {[%clk 0:01:20.4]} 34. Rbxc3 {[%clk 0:00:57.8]}
34... Rxg2+ {[%clk 0:01:20.3]} 35. Kh1 {[%clk 0:00:57.9]} 35... Re2 {[%clk
0:01:20.4]} 36. R8c7 {[%clk 0:00:54]} 36... Nf3 {[%clk 0:01:20.3]} 37. Rc2
{[%clk 0:00:53]} 37... Rxe3 {[%clk 0:01:18.3]} 38. Ra7 {[%clk 0:00:45.8]} 38...
Kf6 {[%clk 0:01:13.5]} 39. Ra4 {[%clk 0:00:43.2]} 39... Rd3 {[%clk 0:01:11.2]}
40. Rf2 {[%clk 0:00:30.7]} 40... Ke5 {[%clk 0:00:56.2]} 41. Ra5 {[%clk
0:00:25.1]} 41... Rd2 {[%clk 0:00:52.8]} 42. Rxd2 {[%clk 0:00:20.8]} 42... Nxd2
{[%clk 0:00:52.1]} 43. Ra7 {[%clk 0:00:18.5]} 43... Kf6 {[%clk 0:00:52.1]} 44.
Kg2 {[%clk 0:00:17.6]} 44... Ne4 {[%clk 0:00:51.2]} 45. Kf3 {[%clk 0:00:15.6]}
45... Nc3 {[%clk 0:00:51]} 46. Ra5 {[%clk 0:00:14.4]} 46... Ke5 {[%clk
0:00:50.9]} 47. Ra7 {[%clk 0:00:13.2]} 47... Nxd5 {[%clk 0:00:50.8]} 48. h4
{[%clk 0:00:11.9]} 48... Kf6 {[%clk 0:00:49.7]} 49. Ra8 {[%clk 0:00:10.2]} 49...
Kf7 {[%clk 0:00:48.2]} 50. h5 {[%clk 0:00:08.2]} 50... e5 {[%clk 0:00:47.6]} 51.
Ra7+ {[%clk 0:00:07.4]} 51... Kf6 {[%clk 0:00:46.7]} 52. Rxh7 {[%clk 0:00:06]}
52... e4+ {[%clk 0:00:47]} 53. Kf2 {[%clk 0:00:04.6]} 53... f4 {[%clk
0:00:47.4]} 54. Rh8 {[%clk 0:00:03.3]} 54... Nc3 {[%clk 0:00:47.4]} 55. h6
{[%clk 0:00:01.6]} 55... Kg6 {[%clk 0:00:47.6]} 0-1

[Event "*** Titled Tuesday Blitz"]
[Site "Chess.com"]
[Date "2020.11.24"]
[Round "2"]
[White "Manukyan_Artak"]
[Black "Zhigalko_Sergei"]
[Result "0-1"]
[WhiteElo "2359"]
[BlackElo "2900"]
[TimeControl "180+1"]
[EndTime "10:33:57 PST"]
[Termination "Zhigalko_Sergei won on time"]

1. e4 {[%clk 0:02:57.3]} 1... c5 {[%clk 0:02:55.9]} 2. Nf3 {[%clk 0:02:57.1]}
2... Nc6 {[%clk 0:02:56.2]} 3. c3 {[%clk 0:02:57.3]} 3... Nf6 {[%clk 0:02:56.4]}
4. e5 {[%clk 0:02:57.8]} 4... Nd5 {[%clk 0:02:56.8]} 5. d4 {[%clk 0:02:58.7]}
5... cxd4 {[%clk 0:02:57.3]} 6. cxd4 {[%clk 0:02:59.6]} 6... d6 {[%clk
0:02:57.3]} 7. Nc3 {[%clk 0:03:00.5]} 7... e6 {[%clk 0:02:57.3]} 8. Bd3 {[%clk
0:02:59.8]} 8... Be7 {[%clk 0:02:57.2]} 9. O-O {[%clk 0:02:59.4]} 9... O-O
{[%clk 0:02:57.4]} 10. Qe2 {[%clk 0:02:59.8]} 10... Bd7 {[%clk 0:02:48.4]} 11.
Qe4 {[%clk 0:02:53.5]} 11... f5 {[%clk 0:02:48.4]} 12. exf6 {[%clk 0:02:52]}
12... Nxf6 {[%clk 0:02:48.7]} 13. Qh4 {[%clk 0:02:43.4]} 13... Qe8 {[%clk
0:02:24.2]} 14. Bg5 {[%clk 0:02:33.2]} 14... Qf7 {[%clk 0:01:44.4]} 15. Ne4
{[%clk 0:01:37.5]} 15... h6 {[%clk 0:01:27.3]} 16. Nxf6+ {[%clk 0:01:35.8]}
16... Bxf6 {[%clk 0:01:21.3]} 17. Bxf6 {[%clk 0:01:31.4]} 17... Qxf6 {[%clk
0:01:19.6]} 18. Qe4 {[%clk 0:01:25.7]} 18... Qf5 {[%clk 0:01:12.4]} 19. Qxf5
{[%clk 0:01:22.9]} 19... exf5 {[%clk 0:01:11.5]} 20. Rfe1 {[%clk 0:01:16.6]}
20... Rfe8 {[%clk 0:01:08.6]} 21. Kf1 {[%clk 0:01:14.6]} 21... g5 {[%clk
0:01:07.7]} 22. Bb5 {[%clk 0:00:54.8]} 22... a6 {[%clk 0:01:04.9]} 23. Bxc6
{[%clk 0:00:53.5]} 23... Bxc6 {[%clk 0:01:05.2]} 24. Rxe8+ {[%clk 0:00:48.9]}
24... Rxe8 {[%clk 0:01:04.1]} 25. Re1 {[%clk 0:00:49.8]} 25... Bb5+ {[%clk
0:00:51.8]} 26. Kg1 {[%clk 0:00:48.8]} 26... Rc8 {[%clk 0:00:52.7]} 27. h4
{[%clk 0:00:42.7]} 27... g4 {[%clk 0:00:50.3]} 28. Nd2 {[%clk 0:00:32.5]} 28...
Rc2 {[%clk 0:00:49.5]} 29. Nf1 {[%clk 0:00:24.2]} 29... Rxb2 {[%clk 0:00:44.2]}
30. Ne3 {[%clk 0:00:24.1]} 30... Bd3 {[%clk 0:00:35]} 31. a4 {[%clk 0:00:17.7]}
31... Kf7 {[%clk 0:00:26.1]} 32. Nd5 {[%clk 0:00:17.6]} 32... Rb1 {[%clk
0:00:17.2]} 33. Rxb1 {[%clk 0:00:14.9]} 33... Bxb1 {[%clk 0:00:18.1]} 34. a5
{[%clk 0:00:13.6]} 34... Ke6 {[%clk 0:00:13]} 35. Nf4+ {[%clk 0:00:11.9]} 35...
Kd7 {[%clk 0:00:12.2]} 36. d5 {[%clk 0:00:09.7]} 36... Kc7 {[%clk 0:00:05.4]}
37. f3 {[%clk 0:00:07]} 37... gxf3 {[%clk 0:00:04.7]} 38. gxf3 {[%clk
0:00:07.9]} 38... b6 {[%clk 0:00:05.4]} 39. axb6+ {[%clk 0:00:08.3]} 39... Kxb6
{[%clk 0:00:06.3]} 40. Kf2 {[%clk 0:00:08.2]} 40... a5 {[%clk 0:00:05.7]} 41.
Ke3 {[%clk 0:00:08.3]} 41... Kc5 {[%clk 0:00:06.1]} 42. Kd2 {[%clk 0:00:07.1]}
42... Ba2 {[%clk 0:00:05.6]} 0-1